[Event "FIDE Women's Grand Swiss 2023"]
[Site "Villa Marina, Douglas, Isle of Man, Isle Of Man"]
[Date "2023.11.04"]
[Round "10.9"]
[White "Wagner, Dinara"]
[Black "Goryachkina, Aleksandra"]
[Result "1/2-1/2"]
[TimeControl "40/90 + 30 + 30s/move"]
[WhiteFideId "24157570"]
[BlackFideId "4147103"]
[WhiteElo "2461"]
[BlackElo "2558"]

1. d4 {[%clk 01:30:56]} {[%emt 00:00:02]} d5 {[%clk 01:30:48]} {[%emt
00:00:13]} 2. c4 {[%clk 01:31:17]} {[%emt 00:00:10]} c6 {[%clk 01:31:09]}
{[%emt 00:00:09]} 3. Nf3 {[%clk 01:31:29]} {[%emt 00:00:18]} Nf6 {[%clk
01:31:26]} {[%emt 00:00:13]} 4. e3 {[%clk 01:31:54]} {[%emt 00:00:04]} Bf5
{[%clk 01:31:37]} {[%emt 00:00:20]} 5. cxd5 {[%clk 01:31:59]} {[%emt 00:00:25]}
cxd5 {[%clk 01:31:45]} {[%emt 00:00:21]} 6. Qb3 {[%clk 01:32:22]} {[%emt
00:00:08]} Qc7 {[%clk 01:29:17]} {[%emt 00:02:58]} 7. Bd2 {[%clk 01:32:36]}
{[%emt 00:00:15]} e6 {[%clk 01:27:22]} {[%emt 00:02:26]} 8. Bb5+ {[%clk
01:32:49]} {[%emt 00:00:17]} Nc6 {[%clk 01:27:22]} {[%emt 00:00:29]} 9. O-O
{[%clk 01:32:47]} {[%emt 00:00:31]} Bd6 {[%clk 01:26:38]} {[%emt 00:01:14]} 10.
Bb4 {[%clk 01:32:45]} {[%emt 00:00:33]} O-O {[%clk 01:24:25]} {[%emt 00:02:42]}
11. Bxd6 {[%clk 01:32:57]} {[%emt 00:00:18]} Qxd6 {[%clk 01:24:49]} {[%emt
00:00:07]} 12. Rc1 {[%clk 01:32:55]} {[%emt 00:00:31]} Rfc8 {[%clk 01:18:05]}
{[%emt 00:07:14]} 13. Nbd2 {[%clk 01:32:38]} {[%emt 00:00:47]} Ne7 {[%clk
01:15:26]} {[%emt 00:03:09]} 14. Ne5 {[%clk 01:26:01]} {[%emt 00:07:06]} Ng4
{[%clk 01:08:58]} {[%emt 00:06:58]} 15. Nef3 {[%clk 01:23:07]} {[%emt
00:03:24]} Nf6 {[%clk 01:09:13]} {[%emt 00:00:16]} 16. Ne5 {[%clk 01:22:59]}
{[%emt 00:00:38]} Ng4 {[%clk 01:09:37]} {[%emt 00:00:06]} 17. Nef3 {[%clk
01:23:14]} {[%emt 00:00:15]} Nf6 {[%clk 01:10:00]} {[%emt 00:00:06]} 18. h3
{[%clk 01:23:32]} {[%emt 00:00:12]} Ne4 {[%clk 01:06:32]} {[%emt 00:03:58]} 19.
Nxe4 {[%clk 01:06:00]} {[%emt 00:18:03]} Bxe4 {[%clk 01:06:43]} {[%emt
00:00:19]} 20. Nd2 {[%clk 01:06:06]} {[%emt 00:00:24]} Bg6 {[%clk 01:06:37]}
{[%emt 00:00:36]} 21. Bf1 {[%clk 01:00:17]} {[%emt 00:06:20]} Rc7 {[%clk
01:03:59]} {[%emt 00:03:07]} 22. Rc3 {[%clk 00:59:06]} {[%emt 00:01:40]} Rac8
{[%clk 00:57:43]} {[%emt 00:06:46]} 23. Rac1 {[%clk 00:59:32]} {[%emt
00:00:04]} h6 {[%clk 00:55:41]} {[%emt 00:02:33]} 24. Nf3 {[%clk 00:58:43]}
{[%emt 00:01:18]} Be4 {[%clk 00:50:32]} {[%emt 00:05:39]} 25. Ne5 {[%clk
00:55:31]} {[%emt 00:03:42]} Rxc3 {[%clk 00:40:29]} {[%emt 00:10:33]} 26. Rxc3
{[%clk 00:43:57]} {[%emt 00:12:04]} Rxc3 {[%clk 00:40:18]} {[%emt 00:00:40]} 27.
Qxc3 {[%clk 00:44:16]} {[%emt 00:00:11]} f6 {[%clk 00:37:53]} {[%emt 00:02:56]}
28. Nd3 {[%clk 00:44:33]} {[%emt 00:00:12]} Bxd3 {[%clk 00:37:33]} {[%emt
00:00:50]} 29. Bxd3 {[%clk 00:44:01]} {[%emt 00:01:02]} Kf7 {[%clk 00:36:54]}
{[%emt 00:01:09]} 30. Qc5 {[%clk 00:30:01]} {[%emt 00:14:31]} Qb8 {[%clk
00:36:28]} {[%emt 00:00:57]} 31. e4 {[%clk 00:27:08]} {[%emt 00:03:23]} 1/2-1/2